bitfinex-derivatives/quotes_SOLF0:USTF0_20250311
["timestamp","ask_amount","ask_price","bid_price","bid_amount"]
[1741725913599,15.93546338,127.24,127.2,31.18]
[1741725913807,7.864,127.2,127.18,31.18]
[1741725914302,18.05050883,127.25,127.18,31.23736173]
[1741725914505,18.05050883,127.25,127.19,7.71597472]
[1741725914705,18.05050883,127.25,127.18,31.18]
[1741725914905,7.8636,127.21,127.19,7.71598212]
[1741725915106,7.8636,127.21,127.18,31.18]
[1741725915310,7.8636,127.21,127.19,7.7077108]
[1741725915511,18.05050883,127.25,127.18,31.2328549]
[1741725915807,18.05050883,127.25,127.19,7.70776304]
[1741725916005,18.05050883,127.25,127.18,31.18]
[1741725916203,7.8636,127.21,127.19,7.70777058]
[1741725916405,7.8636,127.21,127.2,0.05423204]
[1741725917708,9.826,127.21,127.2,0.05423204]
[1741725917905,1.958,127.26,127.2,18.10474087]
[1741725918106,4.0243,127.26,127.21,31.16]
[1741725918409,5.9867,127.26,127.21,31.16]
[1741725919110,7.8623,127.23,127.2,31.21423204]
[1741725920014,5.9867,127.26,127.2,31.21423204]
[1741725920215,7.863,127.22,127.2,31.21423204]
[1741725920408,18.05050883,127.25,127.2,31.21423204]
[1741725920610,2.0644,127.21,127.2,0.05423204]
[1741725920914,20.11490883,127.21,127.11,18.05050883]
[1741725921115,18.05050883,127.19,127.12,50.52957175]
[1741725921313,7.8676,127.14,127.13,7.44983529]
[1741725921510,7.8676,127.14,127.12,31.16]
[1741725921912,7.8676,127.14,127.12,31.21346471]
[1741725921913,0.05423204,127.14,127.12,31.21346471]
[1741725922211,0.05423204,127.14,127.1,31.16]
[1741725922408,0.05423204,127.14,127.09,10.85847014]
[1741725922610,18.05050883,127.13,127.09,10.85847014]
[1741725923409,18.05050883,127.13,127.1,0.05757913]
[1741725924014,2.20113204,127.14,127.1,0.05757913]
[1741725924517,10.06913204,127.14,127.1,0.05757913]
[1741725925118,7.8688,127.12,127.1,0.05757913]
[1741725925717,2.20113204,127.14,127.1,0.05757913]
[1741725925918,1.9782,127.13,127.1,0.05757913]
[1741725926215,9.8467,127.13,127.1,0.05757913]
[1741725926822,1.9782,127.13,127.1,0.05757913]
[1741725927216,0.05423204,127.14,127.11,31.16]
[1741725927417,0.05423204,127.14,127.11,49.21050883]
[1741725927614,0.05423204,127.14,127.13,18.05050883]
[1741725927815,0.05423204,127.14,127.13,25.91860883]
[1741725928016,0.05423204,127.14,127.11,49.21050883]
[1741725928216,0.05423204,127.14,127.12,7.15747243]
[1741725928412,0.05423204,127.14,127.11,49.21050883]
[1741725928618,0.05423204,127.14,127.13,18.05050883]
[1741725928818,0.05423204,127.14,127.13,36.66348058]
[1741725929116,0.05423204,127.14,127.13,44.53158058]
[1741725929321,2.1006,127.19,127.13,36.66348058]
[1741725929515,2.1006,127.19,127.15,18.05050883]
[1741725929727,2.0579,127.22,127.17,18.05050883]
[1741725930021,2.0579,127.22,127.18,31.16]
[1741725930416,18.05050883,127.21,127.13,18.05050883]
[1741725930621,18.05050883,127.21,127.09,31.16]
[1741725930622,18.05050883,127.17,127.09,31.16]
[1741725930826,18.05050883,127.2,127.09,31.16]
[1741725930827,18.05050883,127.15,127.09,31.16]
[1741725931028,2.1301,127.14,127.09,31.16]
[1741725931530,18.05050883,127.13,127.09,31.16]
[1741725931828,18.10177851,127.13,127.1,0.05690656]
[1741725932224,7.8701,127.1,127.06,31.14]
[1741725932527,7.8701,127.1,127.07,7.17100333]
[1741725932721,7.8701,127.1,127.06,31.14]
[1741725932925,7.8701,127.1,127.07,7.1714115]
[1741725933126,33.2701,127.14,127.06,31.14]
[1741725933525,0.06003774,127.11,127.09,0.05250974]
[1741725933719,7.8713,127.08,127.03,36.76905236]
[1741725933920,33.2701,127.14,127.04,57.68736308]
[1741725934132,33.2701,127.14,127.05,18.65376308]
[1741725934333,7.8709,127.09,127.05,18.65376308]
[1741725934527,33.2701,127.14,127.05,18.65376308]
[1741725934928,0.05620983,127.11,127.08,0.05563043]
[1741725935827,7.871,127.09,127.08,0.05563043]
[1741725936531,0.05620983,127.11,127.04,31.16]
[1741725936833,7.8719,127.07,127.04,31.16]
[1741725937030,28.89495236,127.1,127.0,1.6249]
[1741725937227,7.8731,127.05,127.01,49.83686497]
[1741725937532,7.8731,127.05,127.02,49.83686497]
[1741725937726,7.92408822,127.04,127.03,7.1834096]
[1741725938226,7.8744,127.03,127.02,0.05379961]
[1741725938426,7.8744,127.03,127.02,7.24161787]
[1741725938625,7.8744,127.03,127.02,0.05379961]
[1741725942033,0.05069427,127.05,127.02,0.05379961]
[1741725942229,7.8743,127.04,127.02,0.05379961]
[1741725942835,7.8743,127.03,127.02,0.05379961]
[1741725945333,7.8758,127.01,126.98,31.16]
[1741725945633,60.05495236,127.05,126.97,31.16]
[1741725946030,60.05495236,127.05,126.92,1.6797]
[1741725946233,60.05495236,127.05,126.93,49.69568931]
[1741725946534,7.93138474,127.0,126.97,0.05854319]
[1741725946730,7.93138474,127.0,126.96,39.0381]
[1741725947031,60.05495236,127.05,126.97,0.05657472]
[1741725947235,7.92702735,126.99,126.96,31.16]
[1741725947437,60.05495236,127.05,126.96,31.16]
[1741725947733,7.8776,126.98,126.96,31.16]
[1741725948235,0.05829698,126.98,126.96,31.21747423]
[1741725948436,0.05829698,126.98,126.96,39.09597423]
[1741725948637,0.05829698,126.98,126.96,31.21747423]
[1741725949940,7.93569698,126.98,126.96,31.21747423]
[1741725950134,7.93569698,126.98,126.96,0.05747423]
[1741725953543,0.05829698,126.98,126.96,0.05747423]
[1741725953753,7.878,126.97,126.96,0.05747423]
[1741725956049,7.93599698,126.98,126.96,0.05747423]
[1741725956942,0.05829698,126.98,126.96,0.05747423]
[1741725957148,7.878,126.97,126.96,0.05747423]
[1741725957449,0.05829698,126.98,126.96,0.05747423]
[1741725958548,0.05829698,126.98,126.97,7.878]
[1741725959948,0.05829698,126.98,126.96,31.21747423]
[1741725960748,0.05829698,126.98,126.97,7.878]
[1741725961344,7.8748,127.03,126.99,7.8762]
[1741725961549,2.0681,127.04,126.99,49.24492881]
[1741725961752,192.0,127.06,126.99,49.24492881]
[1741725962050,7.8751,127.02,126.99,31.16]
[1741725962342,212.15302881,127.06,126.99,31.16]
[1741725962549,7.8759,127.01,126.99,31.22040035]
[1741725962850,0.05771339,127.02,126.99,31.22040035]
[1741725963450,0.05771339,127.02,126.99,39.09680035]
[1741725964155,0.05771339,127.02,127.0,7.11148027]
[1741725964454,0.05771339,127.02,126.99,39.09680035]
[1741725964652,0.05771339,127.02,127.0,7.11148027]
[1741725964846,0.05771339,127.02,127.0,7.8758]
[1741725965451,0.05771339,127.02,126.99,39.09680035]
[1741725965750,0.05771339,127.02,127.0,36.59687954]
[1741725966052,0.05771339,127.02,127.0,18.08492881]
[1741725966347,0.05771339,127.02,126.99,49.30532916]
[1741725966552,0.05771339,127.02,127.01,7.8756]
[1741725966752,0.05771339,127.02,127.01,26.39821266]
[1741725967149,7.8728,127.06,127.01,18.52261266]
[1741725967349,7.8728,127.06,127.03,7.874]
[1741725967650,20.24112881,127.09,127.02,31.16]
[1741725967847,20.24112881,127.09,127.03,7.12546735]
[1741725968048,20.24112881,127.09,127.02,31.16]
[1741725968350,0.05946843,127.07,127.04,0.0549494]
[1741725969055,7.8729,127.06,127.04,0.0549494]
[1741725969254,0.05946843,127.07,127.04,0.0549494]
[1741725969855,7.8727,127.06,127.04,0.0549494]
[1741725971050,7.8731,127.05,127.04,0.0549494]
[1741725971854,7.8756,127.01,127.0,31.16]
[1741725972058,7.8756,127.01,127.0,7.13240339]
[1741725972555,7.8774,126.98,126.97,43.43388056]
[1741725972751,7.8774,126.98,126.97,50.56995489]
[1741725973150,7.8774,126.98,126.97,43.43388056]
[1741725973858,7.8774,126.98,126.97,36.90528056]
[1741725974958,7.878,126.97,126.96,217.13401843]
[1741725975962,7.8777,126.98,126.96,217.13401843]
[1741725976260,7.8777,126.98,126.96,86.9189395]
[1741725976459,31.20022271,126.99,126.96,0.05117838]
[1741725976660,7.878,126.97,126.96,0.05117838]
[1741725978170,31.20022271,126.99,126.96,0.05117838]
[1741725978171,7.93722271,126.99,126.96,0.05117838]
[1741725978362,0.06022271,126.99,126.96,0.05117838]
[1741725978859,0.06022271,126.99,126.96,31.21117838]
[1741725979253,7.878,126.97,126.96,31.21117838]
[1741725979453,7.878,126.97,126.96,38.25490833]
[1741725979659,0.06022271,126.99,126.96,38.25490833]
[1741725979863,7.93722271,126.99,126.96,31.21117838]
[1741725980055,7.93722271,126.99,126.97,7.04336196]
[1741725980056,0.06022271,126.99,126.97,7.04336196]
[1741725980251,0.06022271,126.99,126.96,31.21117838]
[1741725980460,0.06022271,126.99,126.97,7.0458824]
[1741725980659,7.8777,126.98,126.96,31.21117838]
[1741725981756,0.06022271,126.99,126.96,0.05117838]
[1741725981958,7.878,126.97,126.96,0.05117838]
[1741725982151,7.878,126.97,126.96,7.10014257]
[1741725982355,0.06022271,126.99,126.96,7.10162919]
[1741725982555,0.06022271,126.99,126.97,7.04978788]
[1741725982763,0.06022271,126.99,126.96,0.05117838]
[1741725982958,7.93752271,126.99,126.97,7.04972453]
[1741725983260,0.06022271,126.99,126.96,0.05117838]
[1741725984563,28.95954109,126.98,126.9,2.0586]
[1741725984760,28.95954109,126.95,126.91,7.0019174]
[1741725984966,7.8811,126.93,126.89,126.68256733]
[1741725985155,28.95954109,126.95,126.9,7.0027811]
[1741725985359,28.95954109,126.95,126.91,7.00053431]
[1741725985561,28.95954109,126.95,126.89,149.95986733]
[1741725985762,0.05159401,126.94,126.92,0.05715152]
[1741725986267,7.8811,126.93,126.92,0.05715152]
[1741725987861,0.05159401,126.94,126.92,0.05715152]
[1741725989262,0.05159401,126.94,126.93,7.8805]
[1741725989661,7.8777,126.98,126.94,7.8793]
[1741725989867,7.8777,126.98,126.94,39.0393]
[1741725990067,7.8777,126.98,126.94,31.16]
[1741725990461,7.8777,126.98,126.94,39.0396]
[1741725990667,6.4338,127.01,126.94,31.16]
[1741725990871,0.05332002,126.97,126.95,7.03970704]
[1741725991163,0.05332002,126.97,126.95,0.04965647]
[1741725991668,0.05332002,126.97,126.96,6.98997757]
[1741725991966,0.05332002,126.97,126.95,7.92855647]
[1741725992159,0.05332002,126.97,126.95,0.04965647]
[1741725992356,0.05332002,126.97,126.96,6.99002656]
[1741725995065,0.05332002,126.97,126.96,7.8787]
[1741725995270,0.05332002,126.97,126.96,14.86868116]
[1741725997169,0.05332002,126.97,126.96,14.86850014]
[1741725998468,7.93132002,126.97,126.96,6.98980014]
[1741725998670,18.145758,126.97,126.95,0.04965647]
[1741725998975,7.8787,126.96,126.95,0.04965647]
[1741726002185,7.93162002,126.97,126.95,0.04965647]
[1741726002385,0.05332002,126.97,126.95,0.04965647]
[1741726002774,7.93172002,126.97,126.95,0.04965647]
[1741726003083,0.05332002,126.97,126.95,0.04965647]
[1741726003281,7.8787,126.96,126.95,0.04965647]
[1741726003482,0.05332002,126.97,126.95,0.04965647]
[1741726004377,259.96,127.03,126.95,0.04965647]
[1741726004582,259.96,127.03,126.96,6.84604873]
[1741726004781,288.9219438,127.03,126.96,31.14]
[1741726004980,28.9619438,127.01,126.96,31.14]
[1741726005581,0.05025571,127.0,126.97,0.06008897]
[1741726005784,7.8774,126.98,126.97,0.06008897]
[1741726006584,2.0416,126.99,126.97,0.06008897]
[1741726006784,7.8771,126.99,126.97,0.06008897]
[1741726007283,0.05025571,127.0,126.97,0.06008897]
[1741726007484,7.8774,126.98,126.97,0.06008897]
[1741726007681,0.05025571,127.0,126.97,0.06008897]
[1741726007981,7.92685571,127.0,126.97,0.06008897]
[1741726008483,7.92685571,127.0,126.97,7.93768897]
[1741726009880,7.8769,126.99,126.97,0.06008897]
[1741726010080,0.05025571,127.0,126.97,0.06008897]
[1741726012588,7.8774,126.98,126.97,0.06008897]
[1741726012787,0.05025571,127.0,126.97,0.06008897]
[1741726014386,7.8774,126.98,126.97,0.06008897]
[1741726014582,31.19025571,127.0,126.92,31.14]
[1741726014894,7.8797,126.95,126.93,6.86389657]
[1741726015186,2.157,126.99,126.94,6.86389657]
[1741726015381,7.8781,126.97,126.95,6.86389657]
[1741726015779,7.93541824,126.97,126.95,6.91661786]
[1741726015978,7.93541824,126.97,126.95,0.05272129]
[1741726016178,7.93541824,126.97,126.96,6.87625489]
[1741726016582,7.93541824,126.97,126.95,0.05272129]
[1741726016583,7.8787,126.96,126.95,0.05272129]
[1741726016784,7.8787,126.96,126.95,6.92903731]
[1741726016984,0.05731824,126.97,126.95,0.05272129]
[1741726017187,7.93561824,126.97,126.95,0.05272129]
[1741726018292,0.05731824,126.97,126.95,0.05272129]
[1741726018686,0.05731824,126.97,126.95,31.19272129]
[1741726019090,7.93531824,126.97,126.95,31.19272129]
[1741726019391,0.05731824,126.97,126.96,7.8787]
[1741726021691,0.05731824,126.97,126.95,39.07162129]
[1741726021886,0.05731824,126.97,126.95,31.19272129]
[1741726024195,0.05731824,126.97,126.95,39.07202129]
[1741726024893,0.05731824,126.97,126.96,7.8787]
[1741726025493,0.05731824,126.97,126.95,31.19272129]
[1741726025688,0.05731824,126.97,126.95,39.07172129]
[1741726026991,0.05731824,126.97,126.96,7.8787]
[1741726028998,4.061,127.02,126.95,31.19272129]
[1741726029700,7.8777,126.98,126.95,39.07162129]
[1741726030097,7.9304401,126.98,126.95,39.07162129]
[1741726030301,7.8781,126.97,126.95,31.19272129]
[1741726031901,0.0527401,126.98,126.95,31.19272129]
[1741726032300,7.8783,126.97,126.95,31.19272129]
[1741726032501,0.0527401,126.98,126.95,31.19272129]
[1741726032902,7.9304401,126.98,126.95,39.07162129]
[1741726033102,0.0527401,126.98,126.95,39.07162129]
[1741726033297,0.0527401,126.98,126.95,31.19272129]
[1741726033506,0.0527401,126.98,126.96,7.8787]
[1741726034003,0.0527401,126.98,126.95,31.19272129]
[1741726034199,0.0527401,126.98,126.97,7.878]
[1741726035607,0.0527401,126.98,126.95,31.19272129]
[1741726036505,18.08725171,126.97,126.95,0.05272129]
[1741726036707,7.8812,126.92,126.9,32.71728519]
[1741726036908,7.8812,126.92,126.9,63.83728519]
[1741726037409,7.8808,126.93,126.9,63.83728519]
[1741726037703,18.08725171,126.94,126.92,10.96473601]
[1741726038008,0.05146603,126.93,126.92,18.84583601]
[1741726038208,0.05146603,126.93,126.92,10.96473601]
[1741726041198,7.93196603,126.93,126.92,10.96473601]
[1741726041408,7.93196603,126.93,126.91,0.05795886]
[1741726042007,0.05146603,126.93,126.91,0.05795886]
[1741726042606,7.93196603,126.93,126.91,0.05795886]
[1741726043198,0.05146603,126.93,126.91,0.05795886]
[1741726044106,0.05146603,126.93,126.92,31.12]
[1741726044302,0.05146603,126.93,126.92,39.0011]
[1741726044804,7.8787,126.96,126.92,39.0011]
[1741726045004,7.8787,126.96,126.92,31.12]
[1741726045208,7.8787,126.96,126.93,7.8805]
[1741726045908,7.8787,126.96,126.92,39.0011]
[1741726046110,7.92867194,126.96,126.92,39.0011]
[1741726046807,7.92867194,126.96,126.93,7.8804]
[1741726047013,0.04997194,126.96,126.92,31.12]
[1741726047707,7.92867194,126.96,126.93,7.8801]
[1741726047913,0.04997194,126.96,126.92,31.12]
[1741726048312,0.04997194,126.96,126.93,7.8804]
[1741726049014,7.8799,126.94,126.92,31.12]
[1741726050209,0.04997194,126.96,126.92,39.0009]
[1741726050210,7.8795,126.95,126.92,39.0009]
[1741726050911,7.8795,126.95,126.93,7.8804]
[1741726051110,7.92897194,126.96,126.93,7.8804]
[1741726051306,0.04997194,126.96,126.91,4.24535886]
[1741726051507,0.04997194,126.96,126.92,38.9808]
[1741726051910,0.04997194,126.96,126.92,7.8808]
[1741726052113,0.04997194,126.96,126.93,31.1]
[1741726052514,7.8797,126.95,126.93,31.1]
[1741726053318,7.92897194,126.96,126.93,31.1]
[1741726053518,7.92897194,126.96,126.93,38.9802]
[1741726054020,7.92897194,126.96,126.93,31.1]
[1741726054821,7.92897194,126.96,126.93,38.9805]
[1741726055224,0.04997194,126.96,126.93,31.1]
[1741726055426,0.04997194,126.96,126.94,7.8796]
[1741726055813,0.04997194,126.96,126.94,7.9378972]
[1741726056324,0.04997194,126.96,126.95,7.8793]
[1741726056919,0.04997194,126.96,126.94,0.0582972]
[1741726057523,7.92907194,126.96,126.94,0.0582972]
[1741726058329,7.8793,126.95,126.94,0.0582972]
[1741726058622,18.08725171,126.95,126.86,86.86776112]
[1741726058824,18.08725171,126.95,126.88,31.1]
[1741726059120,18.08725171,126.93,126.89,31.1]
[1741726059328,18.08725171,126.93,126.86,88.92406112]
[1741726059521,18.08725171,126.93,126.89,31.1]
[1741726059716,18.08725171,126.91,126.88,43.6820212]
[1741726060126,18.08725171,126.89,126.88,43.6820212]
[1741726060525,25.97025171,126.89,126.88,43.6820212]
[1741726061025,1.995,126.91,126.88,43.6820212]
[1741726061225,9.8771,126.91,126.88,43.6820212]
[1741726061624,1.995,126.91,126.88,43.6820212]
[1741726061923,7.93481053,126.92,126.88,51.5656212]
[1741726062124,0.05331053,126.92,126.88,74.7820212]
[1741726062323,0.05331053,126.92,126.89,7.8829]
[1741726062523,0.05331053,126.92,126.88,74.7820212]
[1741726062722,0.05331053,126.92,126.88,31.1]
[1741726062924,7.8818,126.91,126.88,31.1]
[1741726063120,0.05331053,126.92,126.88,31.1]
[1741726064334,7.8818,126.91,126.88,31.1]
[1741726064921,0.05331053,126.92,126.9,7.8822]
[1741726065121,0.05331053,126.92,126.88,31.1]
[1741726065325,0.05331053,126.92,126.9,0.05422697]
[1741726065728,0.05331053,126.92,126.91,31.1]
[1741726066829,0.05331053,126.92,126.91,38.9818]
[1741726067430,0.05331053,126.92,126.91,31.1]
[1741726070329,0.05331053,126.92,126.91,38.9818]
[1741726070539,0.05331053,126.92,126.91,31.1]
[1741726071836,20.22485171,126.99,126.91,49.18725171]
[1741726072137,20.22485171,126.99,126.91,51.24065171]
[1741726072330,7.8783,126.97,126.91,51.24065171]
[1741726072929,0.05234457,126.95,126.94,7.8795]
[1741726073133,0.05234457,126.95,126.94,38.9795]
[1741726073736,260.02,127.0,126.96,7.8782]
[1741726074039,1.9982,127.02,126.94,31.1]
[1741726074335,20.06815171,127.03,126.97,7.8774]
[1741726074537,7.876,127.01,126.98,31.1]
[1741726074736,20.06815171,127.03,126.98,31.1]
[1741726074937,0.0554951,127.01,126.98,39.03398983]
[1741726075538,7.9311951,127.01,126.98,39.03398983]
[1741726078332,0.0554951,127.01,126.98,31.15688983]
[1741726079242,0.0554951,127.01,127.0,7.8762]
[1741726079443,278.10725171,127.06,126.98,31.15688983]
[1741726079740,278.10725171,127.06,127.01,7.8751]
[1741726079928,260.02,127.06,127.01,31.08]
[1741726080744,0.06027052,127.05,127.03,7.8741]
[1741726081640,0.06027052,127.05,127.02,0.05415612]
[1741726082438,192.0,127.1,127.02,18.14140783]
[1741726082640,282.04695171,127.12,127.04,18.08725171]
[1741726082936,263.9597,127.12,127.08,7.8708]
[1741726083143,263.9597,127.12,127.08,38.9508]
[1741726083639,0.0587473,127.11,127.09,0.05888218]
[1741726083840,210.08725171,127.16,127.09,0.05888218]
[1741726084034,18.08725171,127.16,127.09,0.05888218]
[1741726084344,18.08725171,127.16,127.12,7.8682]
[1741726084844,18.08725171,127.16,127.11,31.06]
[1741726085043,18.08725171,127.16,127.13,7.8677]
[1741726085238,0.04592217,127.15,127.13,0.05968681]
[1741726085640,0.04592217,127.15,127.14,7.8675]
[1741726086644,0.04592217,127.15,127.14,38.9275]
[1741726087247,4.2452,127.21,127.14,31.06]
[1741726087846,12.1084,127.21,127.14,31.06]
[1741726088050,4.2452,127.21,127.15,7.8666]
[1741726088351,18.08725171,127.18,127.11,31.06]
[1741726088751,18.08725171,127.18,127.11,38.9292]
[1741726089044,25.95265171,127.18,127.11,38.9292]
[1741726089245,18.08725171,127.18,127.12,7.8687]
[1741726089749,0.05510833,127.16,127.14,7.92551797]
[1741726089940,0.05510833,127.16,127.14,31.09811797]
[1741726091444,0.05510833,127.16,127.14,0.05811797]
[1741726091846,18.14236004,127.16,127.14,0.05811797]
[1741726092753,7.8669,127.15,127.14,0.05811797]
[1741726093056,18.14236004,127.16,127.14,0.05811797]
[1741726093251,0.05510833,127.16,127.14,0.05811797]
[1741726094854,7.8669,127.15,127.14,0.05811797]
[1741726095052,0.05510833,127.16,127.14,0.05811797]
[1741726096752,18.14236004,127.16,127.1,31.02]
[1741726096961,18.08725171,127.16,127.1,31.02]
[1741726097161,7.8679,127.14,127.1,31.02]
[1741726097655,18.08725171,127.16,127.1,31.02]
[1741726097861,0.05561207,127.13,127.11,0.0503234]
[1741726099059,7.8687,127.12,127.11,0.0503234]
[1741726099364,7.8687,127.12,126.89,62.42257261]
[1741726099365,18.08725171,127.12,127.01,18.08725171]
[1741726099568,18.08725171,127.11,127.02,31.02]
[1741726099859,18.08725171,127.11,127.04,7.8736]
[1741726100063,18.08725171,127.11,127.05,31.02]
[1741726100360,18.08725171,127.11,127.07,0.0500753]
[1741726100567,0.05421361,127.09,127.07,0.0500753]
[1741726101167,0.05421361,127.09,127.08,38.8912]
[1741726101366,473.80625171,127.15,127.08,38.8912]
[1741726101555,281.80625171,127.15,127.08,38.8912]
[1741726101758,7.8682,127.13,127.09,7.8705]
[1741726101957,18.08725171,127.11,127.05,31.02]
[1741726102157,281.80625171,127.15,127.05,49.10725171]
[1741726102357,0.05574626,127.11,127.08,0.06046668]
[1741726102565,0.05574626,127.11,127.09,31.02]
[1741726102960,7.87,127.1,127.09,31.02]
[1741726104275,7.8706,127.09,127.08,0.06046668]
[1741726108071,18.08725171,127.09,127.01,2.1596]
[1741726108273,18.08725171,127.07,127.01,31.02]
[1741726109179,7.8741,127.04,127.01,31.02]
[1741726109384,7.8741,127.04,127.03,0.05368333]
[1741726109981,0.05936247,127.05,127.03,0.05368333]
[1741726110782,7.93286247,127.05,127.03,0.05368333]
[1741726111085,0.05936247,127.05,127.03,0.05368333]
[1741726111375,7.8737,127.04,127.03,0.05368333]
[1741726111576,18.14661418,127.05,126.99,31.02]
[1741726111780,18.08725171,127.05,126.99,31.02]
[1741726112276,18.08725171,127.05,126.97,2.0322]
[1741726112482,18.08725171,127.03,126.98,31.02]
[1741726112681,0.05408978,127.02,127.0,0.0564431]
[1741726113477,7.8756,127.01,127.0,0.0564431]
[1741726116380,7.92928978,127.02,127.0,0.0564431]
[1741726117087,7.8756,127.01,127.0,0.0564431]
[1741726118185,7.8779,126.98,126.97,31.02]
[1741726118788,7.8779,126.98,126.96,31.02]
[1741726119083,7.878,126.97,126.96,31.02]
[1741726119288,0.05634194,126.98,126.96,31.07515047]
[1741726120285,0.05634194,126.98,126.96,0.05515047]
[1741726120490,7.8784,126.97,126.96,0.05515047]
[1741726122487,7.8804,126.94,126.92,31.02]
[1741726122686,18.08725171,126.97,126.92,31.02]
[1741726123086,7.8805,126.93,126.91,31.04]
[1741726123384,7.8805,126.93,126.9,2.1499]
[1741726123385,18.08725171,126.97,126.88,7.8833]
[1741726123579,4.2356,126.96,126.91,31.0922161]
[1741726123890,7.881,126.93,126.91,31.0922161]
[1741726124192,0.0515163,126.94,126.91,31.0922161]
[1741726124388,7.9317163,126.94,126.91,31.0922161]
[1741726125991,7.8806,126.93,126.91,31.0922161]
[1741726126594,0.0515163,126.94,126.93,7.8805]
[1741726127391,0.0515163,126.94,126.92,7.881]
[1741726127590,0.0515163,126.94,126.91,31.0922161]
[1741726128489,0.0515163,126.94,126.91,38.9736161]
[1741726128688,0.0515163,126.94,126.91,31.0922161]
[1741726129390,0.0515163,126.94,126.91,49.17946781]
[1741726129992,0.0515163,126.94,126.91,31.0922161]
[1741726130287,7.9318163,126.94,126.91,31.0922161]
[1741726130492,7.9318163,126.94,126.91,38.9737161]
[1741726130693,7.9318163,126.94,126.91,31.0922161]
[1741726134095,7.9318163,126.94,126.91,38.9739161]
[1741726135200,0.0515163,126.94,126.92,7.8809]
[1741726136707,0.0515163,126.94,126.91,38.9737161]
[1741726137202,7.9317163,126.94,126.91,38.9737161]
[1741726137403,7.9317163,126.94,126.92,7.8811]
[1741726138100,7.9317163,126.94,126.91,38.9737161]
[1741726139501,7.9317163,126.94,126.92,7.8808]
[1741726139707,0.0515163,126.94,126.91,31.0922161]
[1741726140201,0.0515163,126.94,126.92,7.8806]
[1741726140397,0.0515163,126.94,126.91,49.17946781]
[1741726140995,7.8782,126.97,126.92,4.0956]
[1741726141199,6.2094,127.0,126.92,4.0956]
[1741726141801,6.2094,127.0,126.93,18.08725171]
[1741726142103,0.05904921,126.98,126.96,7.8782]
[1741726142709,0.05904921,126.98,126.95,0.05464808]
[1741726142901,7.8783,126.97,126.95,0.05464808]
[1741726145005,0.05904921,126.98,126.95,0.05464808]
[1741726145603,0.05904921,126.98,126.95,7.93384808]
[1741726145807,0.05904921,126.98,126.95,18.14189979]
[1741726146104,7.8746,127.03,126.97,7.8776]
[1741726146305,18.08725171,127.03,126.98,31.02]
[1741726146607,18.08725171,127.01,126.92,4.0956]
[1741726146798,18.08725171,127.01,126.93,31.02]
[1741726147309,0.05898009,126.98,126.96,0.05313152]
[1741726147809,0.05898009,126.98,126.97,38.898]
[1741726148310,41.0151,127.04,126.97,31.02]
[1741726148610,33.1412,127.04,126.97,31.02]
[1741726148903,9.995,127.04,126.99,7.8765]
[1741726149309,0.05991904,127.03,127.0,0.05637712]
[1741726151205,0.05991904,127.03,127.0,7.93237712]
[1741726152215,18.14717075,127.03,127.0,0.05637712]
[1741726152609,26.02177075,127.03,127.0,0.05637712]
[1741726153009,18.14717075,127.03,127.0,0.05637712]
[1741726153208,18.14717075,127.03,127.0,7.93207712]
[1741726154013,18.14717075,127.03,127.0,0.05637712]
[1741726154612,26.02197075,127.03,127.0,0.05637712]
[1741726155216,0.05991904,127.03,127.0,0.05637712]
[1741726155707,0.05991904,127.03,127.01,7.8755]
[1741726156307,0.05991904,127.03,127.0,0.05637712]
[1741726156513,7.93431904,127.03,127.0,7.93227712]
[1741726157214,7.93431904,127.03,127.0,0.05637712]
[1741726158114,0.05991904,127.03,127.0,7.93227712]
[1741726158815,7.93441904,127.03,127.0,7.93227712]
[1741726159710,0.05991904,127.03,127.0,0.05637712]
[1741726159912,0.05991904,127.03,127.0,7.93217712]
[1741726160112,7.93451904,127.03,127.0,0.05637712]
[1741726160413,19.50782476,127.03,127.0,0.05637712]
[1741726160611,11.57330572,127.01,126.95,31.0]
[1741726160913,11.57330572,126.98,126.95,31.0]
[1741726161116,11.57330572,126.98,126.96,7.8784]
[1741726161621,11.57330572,127.01,126.98,7.8771]
[1741726161819,11.57330572,127.01,126.96,0.05410808]
[1741726162020,11.57330572,126.99,126.96,0.05410808]
[1741726162221,26.02713198,127.01,126.97,7.8777]
[1741726162411,18.15133198,127.01,126.96,0.05410808]
[1741726162921,0.05966007,127.01,126.96,0.05410808]
[1741726163121,0.05966007,127.01,126.96,18.14577999]